[Event "Titled Tuesday Blitz March 07 Early 2023"]
[White "Pinheiro, Iung Alicio de O."]
[Black "Begunov, Konstantin"]
[WhiteFideId "2104350"]
[BlackFideId "4118510"]
[WhiteElo "2283"]
[BlackElo "2079"]
[Result "0-1"]
[Round "03"]
[TimeControl "180+2"]
[Date "2023.03.07"]
[WhiteClock "0:00:02"]
[BlackClock "0:00:07"]

1. e4 {[%clk 0:02:53]}  c5 {[%clk 0:02:28]} 2. Nf3 {[%clk 0:02:53]}  d6 {[%clk 0:02:28]} 3. Bc4 {[%clk 0:02:51]}  a6 {[%clk 0:02:26]} 4. a4 {[%clk 0:02:50]}  Nc6 {[%clk 0:02:26]} 5. Qe2 {[%clk 0:02:37]}  Nf6 {[%clk 0:02:25]} 6. e5 {[%clk 0:02:34]}  dxe5 {[%clk 0:02:23]} 7. Nxe5 {[%clk 0:02:34]}  Nxe5 {[%clk 0:02:20]} 8. Qxe5 {[%clk 0:02:34]}  e6 {[%clk 0:02:10]} 9. O-O {[%clk 0:02:32]}  Bd6 {[%clk 0:02:10]} 10. Qe2 {[%clk 0:02:31]}  Qc7 {[%clk 0:02:10]} 11. h3 {[%clk 0:02:18]}  Bd7 {[%clk 0:02:10]} 12. a5 {[%clk 0:02:13]}  Bc6 {[%clk 0:02:02]} 13. Nc3 {[%clk 0:02:08]}  O-O {[%clk 0:02:01]} 14. d3 {[%clk 0:01:56]}  Bh2+ {[%clk 0:01:36]} 15. Kh1 {[%clk 0:01:56]}  Bf4 {[%clk 0:01:37]} 16. Be3 {[%clk 0:01:48]}  Bxe3 {[%clk 0:01:20]} 17. fxe3 {[%clk 0:01:41]}  Nd5 {[%clk 0:01:19]} 18. Ne4 {[%clk 0:01:30]}  Qe7 {[%clk 0:01:18]} 19. Nd2 {[%clk 0:01:11]}  Rad8 {[%clk 0:01:09]} 20. e4 {[%clk 0:01:09]}  Nf6 {[%clk 0:01:09]} 21. Nb3 {[%clk 0:00:58]}  Nd7 {[%clk 0:01:08]} 22. Rf2 {[%clk 0:00:56]}  Kh8 {[%clk 0:01:06]} 23. Raf1 {[%clk 0:00:56]}  f6 {[%clk 0:01:07]} 24. Qe3 {[%clk 0:00:56]}  Rc8 {[%clk 0:00:52]} 25. Rf4 {[%clk 0:00:46]}  Ba4 {[%clk 0:00:30]} 26. Nd2 {[%clk 0:00:32]}  Ne5 {[%clk 0:00:29]} 27. b3 {[%clk 0:00:31]}  Bb5 {[%clk 0:00:26]} 28. Qg3 {[%clk 0:00:27]}  Bxc4 {[%clk 0:00:25]} 29. Nxc4 {[%clk 0:00:24]}  Nxc4 {[%clk 0:00:25]} 30. bxc4 {[%clk 0:00:25]}  e5 {[%clk 0:00:25]} 31. R4f2 {[%clk 0:00:24]}  Qc7 {[%clk 0:00:23]} 32. Ra1 {[%clk 0:00:25]}  b5 {[%clk 0:00:23]} 33. axb6 {[%clk 0:00:24]}  Qxb6 {[%clk 0:00:23]} 34. Rff1 {[%clk 0:00:24]}  Ra8 {[%clk 0:00:23]} 35. Rfb1 {[%clk 0:00:24]}  Qc7 {[%clk 0:00:22]} 36. Qe1 {[%clk 0:00:22]}  a5 {[%clk 0:00:22]} 37. Ra4 {[%clk 0:00:22]}  Rfb8 {[%clk 0:00:20]} 38. Rb5 {[%clk 0:00:22]}  Rxb5 {[%clk 0:00:19]} 39. cxb5 {[%clk 0:00:23]}  Qb6 {[%clk 0:00:20]} 40. c4 {[%clk 0:00:23]}  h6 {[%clk 0:00:20]} 41. Qa1 {[%clk 0:00:22]}  Ra7 {[%clk 0:00:21]} 42. Kh2 {[%clk 0:00:23]}  Ra8 {[%clk 0:00:21]} 43. Qc3 {[%clk 0:00:22]}  Ra7 {[%clk 0:00:22]} 44. Qb3 {[%clk 0:00:22]}  Ra8 {[%clk 0:00:22]} 45. Ra1 {[%clk 0:00:21]}  Ra7 {[%clk 0:00:23]} 46. Qa4 {[%clk 0:00:21]}  Ra8 {[%clk 0:00:23]} 47. Ra2 {[%clk 0:00:20]}  Ra7 {[%clk 0:00:24]} 48. Re2 {[%clk 0:00:18]}  Ra8 {[%clk 0:00:24]} 49. Rc2 {[%clk 0:00:18]}  Ra7 {[%clk 0:00:24]} 50. Re2 {[%clk 0:00:18]}  Ra8 {[%clk 0:00:25]} 51. Re3 {[%clk 0:00:19]}  Ra7 {[%clk 0:00:25]} 52. Rg3 {[%clk 0:00:19]}  Ra8 {[%clk 0:00:25]} 53. Rf3 {[%clk 0:00:19]}  Ra7 {[%clk 0:00:26]} 54. Qa3 {[%clk 0:00:19]}  Ra8 {[%clk 0:00:25]} 55. d4 {[%clk 0:00:18]}  exd4 {[%clk 0:00:24]} 56. e5 {[%clk 0:00:19]}  fxe5 {[%clk 0:00:24]} 57. Qd3 {[%clk 0:00:19]}  Qe6 {[%clk 0:00:23]} 58. Qe4 {[%clk 0:00:19]}  Rd8 {[%clk 0:00:21]} 59. Rf5 {[%clk 0:00:18]}  Re8 {[%clk 0:00:20]} 60. Qg4 {[%clk 0:00:13]}  Qxc4 {[%clk 0:00:19]} 61. b6 {[%clk 0:00:10]}  Qb5 {[%clk 0:00:16]} 62. Rf7 {[%clk 0:00:08]}  Rg8 {[%clk 0:00:14]} 63. b7 {[%clk 0:00:08]}  d3 {[%clk 0:00:13]} 64. Qc8 {[%clk 0:00:02]}  d2 {[%clk 0:00:12]} 65. Rf8 {[%clk 0:00:02]}  d1=Q {[%clk 0:00:06]} 66. Rxg8+ {[%clk 0:00:02]}  Kh7 {[%clk 0:00:07]} 0-1


[Site "https://www.chess.com"]

[Event "Titled Tuesday Blitz March 07 Early 2023"]
[White "Djokovic, Nebojsa"]
[Black "Leve, Nitai"]
[WhiteFideId "938300"]
[BlackFideId "2006898"]
[WhiteElo "2579"]
[BlackElo "2144"]
[Result "1-0"]
[Round "03"]
[TimeControl "180+2"]
[Date "2023.03.07"]
[WhiteClock "0:00:14"]
[BlackClock "0:00:06"]

1. c4 {[%clk 0:03:00]}  e5 {[%clk 0:02:55]} 2. Nc3 {[%clk 0:03:00]}  Nf6 {[%clk 0:02:55]} 3. Nf3 {[%clk 0:03:00]}  Nc6 {[%clk 0:02:52]} 4. g3 {[%clk 0:03:00]}  Bc5 {[%clk 0:02:51]} 5. d3 {[%clk 0:02:51]}  d6 {[%clk 0:02:45]} 6. Bg2 {[%clk 0:02:50]}  Bg4 {[%clk 0:02:44]} 7. O-O {[%clk 0:02:50]}  Qd7 {[%clk 0:02:44]} 8. Rb1 {[%clk 0:02:44]}  a5 {[%clk 0:02:43]} 9. a3 {[%clk 0:02:37]}  Bh3 {[%clk 0:02:34]} 10. Bg5 {[%clk 0:02:25]}  Ng8 {[%clk 0:02:07]} 11. Nd5 {[%clk 0:02:22]}  f6 {[%clk 0:01:54]} 12. Bxh3 {[%clk 0:02:20]}  Qxh3 {[%clk 0:01:49]} 13. Nxc7+ {[%clk 0:02:20]}  Kd7 {[%clk 0:01:49]} 14. Nxa8 {[%clk 0:02:21]}  fxg5 {[%clk 0:01:48]} 15. Nxg5 {[%clk 0:02:18]}  Qh5 {[%clk 0:01:39]} 16. Ne4 {[%clk 0:01:58]}  Ba7 {[%clk 0:01:15]} 17. Qb3 {[%clk 0:01:45]}  Nd8 {[%clk 0:00:28]} 18. Nb6+ {[%clk 0:01:42]}  Bxb6 {[%clk 0:00:27]} 19. Qxb6 {[%clk 0:01:42]}  Nh6 {[%clk 0:00:12]} 20. Qxd6+ {[%clk 0:01:41]}  Kc8 {[%clk 0:00:12]} 21. b4 {[%clk 0:01:21]}  Qh3 {[%clk 0:00:11]} 22. Ng5 {[%clk 0:01:05]}  Qg4 {[%clk 0:00:11]} 23. Nf3 {[%clk 0:00:59]}  Re8 {[%clk 0:00:09]} 24. bxa5 {[%clk 0:00:53]}  Re6 {[%clk 0:00:08]} 25. Qd5 {[%clk 0:00:50]}  Nhf7 {[%clk 0:00:04]} 26. Rb6 {[%clk 0:00:41]}  Rxb6 {[%clk 0:00:02]} 27. axb6 {[%clk 0:00:42]}  Qd7 {[%clk 0:00:02]} 28. Qa5 {[%clk 0:00:31]}  Qc6 {[%clk 0:00:02]} 29. Nxe5 {[%clk 0:00:23]}  Nxe5 {[%clk 0:00:02]} 30. Qxe5 {[%clk 0:00:23]}  Ne6 {[%clk 0:00:03]} 31. Rb1 {[%clk 0:00:19]}  h6 {[%clk 0:00:04]} 32. Rb5 {[%clk 0:00:18]}  Kd7 {[%clk 0:00:04]} 33. Rd5+ {[%clk 0:00:16]}  Ke7 {[%clk 0:00:05]} 34. c5 {[%clk 0:00:15]}  Kf7 {[%clk 0:00:04]} 35. Rd6 {[%clk 0:00:15]}  Qc8 {[%clk 0:00:05]} 36. Qxe6+ {[%clk 0:00:13]}  Qxe6 {[%clk 0:00:05]} 37. Rxe6 {[%clk 0:00:14]}  Kxe6 {[%clk 0:00:06]} 38. c6 {[%clk 0:00:13]}  bxc6 {[%clk 0:00:06]} 39. b7 {[%clk 0:00:14]} 1-0


[Site "https://www.chess.com"]

[Event "Titled Tuesday Blitz March 07 Early 2023"]
[White "Garic, Radomir"]
[Black "Gabdrakhmanov, Azat"]
[WhiteFideId "920959"]
[BlackFideId "34189197"]
[WhiteElo "2204"]
[BlackElo "2266"]
[Result "0-1"]
[Round "03"]
[TimeControl "180+2"]
[Date "2023.03.07"]
[WhiteClock "0:00:02"]
[BlackClock "0:00:08"]

1. e4 {[%clk 0:03:00]}  c5 {[%clk 0:03:00]} 2. Nf3 {[%clk 0:03:00]}  e6 {[%clk 0:03:00]} 3. c3 {[%clk 0:03:00]}  d5 {[%clk 0:03:00]} 4. exd5 {[%clk 0:03:01]}  Qxd5 {[%clk 0:03:00]} 5. d4 {[%clk 0:03:01]}  Nf6 {[%clk 0:03:00]} 6. Be3 {[%clk 0:03:02]}  cxd4 {[%clk 0:03:00]} 7. cxd4 {[%clk 0:03:03]}  Nc6 {[%clk 0:03:00]} 8. Nc3 {[%clk 0:03:03]}  Qd6 {[%clk 0:02:58]} 9. a3 {[%clk 0:03:03]}  Be7 {[%clk 0:02:57]} 10. Bd3 {[%clk 0:03:03]}  O-O {[%clk 0:02:57]} 11. O-O {[%clk 0:03:04]}  b6 {[%clk 0:02:58]} 12. Qe2 {[%clk 0:03:05]}  Bb7 {[%clk 0:02:57]} 13. Rad1 {[%clk 0:03:05]}  Rad8 {[%clk 0:02:57]} 14. Rfe1 {[%clk 0:03:06]}  Qb8 {[%clk 0:02:56]} 15. Bb1 {[%clk 0:03:05]}  Bd6 {[%clk 0:02:53]} 16. Bc1 {[%clk 0:03:04]}  Ne7 {[%clk 0:02:51]} 17. Ne5 {[%clk 0:03:01]}  Ng6 {[%clk 0:02:47]} 18. Nb5 {[%clk 0:02:54]}  Nxe5 {[%clk 0:02:29]} 19. dxe5 {[%clk 0:02:22]}  Bxe5 {[%clk 0:02:29]} 20. h3 {[%clk 0:01:54]}  Bf4 {[%clk 0:02:12]} 21. Bxf4 {[%clk 0:01:42]}  Qxf4 {[%clk 0:02:13]} 22. Nxa7 {[%clk 0:01:38]}  Rd5 {[%clk 0:01:38]} 23. Rxd5 {[%clk 0:01:33]}  Bxd5 {[%clk 0:01:32]} 24. Nb5 {[%clk 0:01:22]}  Qg5 {[%clk 0:01:31]} 25. g3 {[%clk 0:01:08]}  h5 {[%clk 0:01:23]} 26. Nc3 {[%clk 0:00:53]}  h4 {[%clk 0:01:16]} 27. Nxd5 {[%clk 0:00:53]}  exd5 {[%clk 0:01:13]} 28. Qe5 {[%clk 0:00:47]}  Qxe5 {[%clk 0:01:09]} 29. Rxe5 {[%clk 0:00:47]}  Rc8 {[%clk 0:01:08]} 30. Kg2 {[%clk 0:00:44]}  hxg3 {[%clk 0:01:07]} 31. Kxg3 {[%clk 0:00:32]}  Rc1 {[%clk 0:01:07]} 32. Ba2 {[%clk 0:00:27]}  Rc2 {[%clk 0:00:56]} 33. a4 {[%clk 0:00:16]}  Ne4+ {[%clk 0:00:40]} 34. Kf4 {[%clk 0:00:11]}  Rxf2+ {[%clk 0:00:39]} 35. Ke3 {[%clk 0:00:11]}  Rxb2 {[%clk 0:00:38]} 36. Bxd5 {[%clk 0:00:11]}  Nf6 {[%clk 0:00:38]} 37. Bf3 {[%clk 0:00:09]}  Rb3+ {[%clk 0:00:35]} 38. Ke2 {[%clk 0:00:08]}  Rb4 {[%clk 0:00:30]} 39. Bc6 {[%clk 0:00:06]}  Rh4 {[%clk 0:00:25]} 40. Bb5 {[%clk 0:00:05]}  Rxh3 {[%clk 0:00:23]} 41. Re7 {[%clk 0:00:05]}  Rh5 {[%clk 0:00:18]} 42. Rb7 {[%clk 0:00:04]}  Nd5 {[%clk 0:00:19]} 43. Bc4 {[%clk 0:00:03]}  Rf5 {[%clk 0:00:16]} 44. Rb8+ {[%clk 0:00:03]}  Kh7 {[%clk 0:00:15]} 45. Bxd5 {[%clk 0:00:04]}  Rxd5 {[%clk 0:00:15]} 46. Rxb6 {[%clk 0:00:04]}  Rd4 {[%clk 0:00:13]} 47. a5 {[%clk 0:00:04]}  Ra4 {[%clk 0:00:13]} 48. Rb5 {[%clk 0:00:03]}  Kg6 {[%clk 0:00:12]} 49. Kd3 {[%clk 0:00:03]}  f5 {[%clk 0:00:12]} 50. Kc3 {[%clk 0:00:04]}  f4 {[%clk 0:00:11]} 51. Kb3 {[%clk 0:00:05]}  Ra1 {[%clk 0:00:11]} 52. Kb2 {[%clk 0:00:05]}  Re1 {[%clk 0:00:11]} 53. a6 {[%clk 0:00:05]}  Re6 {[%clk 0:00:08]} 54. a7 {[%clk 0:00:04]}  Ra6 {[%clk 0:00:07]} 55. Rb7 {[%clk 0:00:04]}  f3 {[%clk 0:00:07]} 56. Kc2 {[%clk 0:00:04]}  f2 {[%clk 0:00:07]} 57. Rb6+ {[%clk 0:00:03]}  Rxb6 {[%clk 0:00:08]} 58. a8=Q {[%clk 0:00:04]}  f1=Q {[%clk 0:00:08]} 59. Qe8+ {[%clk 0:00:03]}  Kg5 {[%clk 0:00:07]} 60. Qe3+ {[%clk 0:00:03]}  Qf4 {[%clk 0:00:06]} 61. Qxb6 {[%clk 0:00:04]}  Qe4+ {[%clk 0:00:06]} 62. Kd2 {[%clk 0:00:04]}  g6 {[%clk 0:00:07]} 63. Qd8+ {[%clk 0:00:02]}  Kf4 {[%clk 0:00:07]} 64. Qg8 {[%clk 0:00:02]}  g5 {[%clk 0:00:06]} 65. Qg7 {[%clk 0:00:02]}  Kg4 {[%clk 0:00:06]} 66. Qh6 {[%clk 0:00:03]}  Qf4+ {[%clk 0:00:06]} 67. Ke2 {[%clk 0:00:03]}  Kg3 {[%clk 0:00:07]} 68. Qh5 {[%clk 0:00:02]}  g4 {[%clk 0:00:07]} 69. Qh1 {[%clk 0:00:02]}  Qf3+ {[%clk 0:00:07]} 70. Qxf3+ {[%clk 0:00:02]}  gxf3+ {[%clk 0:00:08]} 71. Kf1 {[%clk 0:00:02]}  f2 {[%clk 0:00:08]} 0-1


[Site "https://www.chess.com"]

[Event "Titled Tuesday Blitz March 07 Early 2023"]
[White "Tarhan, Adar"]
[Black "Saito, Vinicius"]
[WhiteFideId "34544712"]
[BlackFideId "2113384"]
[WhiteElo "2220"]
[BlackElo "2152"]
[Result "1-0"]
[Round "03"]
[TimeControl "180+2"]
[Date "2023.03.07"]
[WhiteClock "0:01:25"]
[BlackClock "0:01:05"]

1. d4 {[%clk 0:03:00]}  Nf6 {[%clk 0:02:59]} 2. Nc3 {[%clk 0:02:53]}  d5 {[%clk 0:02:58]} 3. g3 {[%clk 0:02:51]}  Bf5 {[%clk 0:02:56]} 4. Bg2 {[%clk 0:02:51]}  e6 {[%clk 0:02:57]} 5. Bg5 {[%clk 0:02:51]}  Be7 {[%clk 0:02:57]} 6. e3 {[%clk 0:02:49]}  Nbd7 {[%clk 0:02:56]} 7. Nge2 {[%clk 0:02:47]}  h6 {[%clk 0:02:56]} 8. Bxf6 {[%clk 0:02:47]}  Nxf6 {[%clk 0:02:57]} 9. Nf4 {[%clk 0:02:47]}  a6 {[%clk 0:02:52]} 10. O-O {[%clk 0:02:44]}  O-O {[%clk 0:02:50]} 11. Rc1 {[%clk 0:02:36]}  c5 {[%clk 0:02:50]} 12. Nce2 {[%clk 0:02:35]}  Rc8 {[%clk 0:02:49]} 13. c4 {[%clk 0:02:34]}  Ne4 {[%clk 0:02:39]} 14. cxd5 {[%clk 0:02:31]}  exd5 {[%clk 0:02:39]} 15. dxc5 {[%clk 0:02:31]}  Bxc5 {[%clk 0:02:09]} 16. Qxd5 {[%clk 0:02:28]}  Qxd5 {[%clk 0:02:08]} 17. Nxd5 {[%clk 0:02:28]}  Kh8 {[%clk 0:01:52]} 18. Nec3 {[%clk 0:02:24]}  Nxc3 {[%clk 0:01:46]} 19. Nxc3 {[%clk 0:02:25]}  Rc7 {[%clk 0:01:39]} 20. Nd5 {[%clk 0:02:05]}  Rcc8 {[%clk 0:01:34]} 21. Nc3 {[%clk 0:01:58]}  b6 {[%clk 0:01:15]} 22. Bb7 {[%clk 0:01:55]}  Bd3 {[%clk 0:01:14]} 23. Bxc8 {[%clk 0:01:49]}  Bxf1 {[%clk 0:01:14]} 24. Kxf1 {[%clk 0:01:50]}  Rxc8 {[%clk 0:01:14]} 25. Na4 {[%clk 0:01:43]}  Rc7 {[%clk 0:01:14]} 26. b4 {[%clk 0:01:42]}  Bd6 {[%clk 0:01:14]} 27. Rxc7 {[%clk 0:01:36]}  Bxc7 {[%clk 0:01:15]} 28. Ke2 {[%clk 0:01:33]}  Kg8 {[%clk 0:01:15]} 29. Kd3 {[%clk 0:01:33]}  Kf8 {[%clk 0:01:15]} 30. Kd4 {[%clk 0:01:33]}  Ke7 {[%clk 0:01:16]} 31. Kd5 {[%clk 0:01:34]}  Kd7 {[%clk 0:01:17]} 32. Nc3 {[%clk 0:01:32]}  Bd6 {[%clk 0:01:15]} 33. b5 {[%clk 0:01:28]}  a5 {[%clk 0:01:15]} 34. Na4 {[%clk 0:01:24]}  Bc7 {[%clk 0:01:14]} 35. Nb2 {[%clk 0:01:24]}  Bd8 {[%clk 0:01:13]} 36. a4 {[%clk 0:01:24]}  Be7 {[%clk 0:01:11]} 37. Nc4 {[%clk 0:01:25]}  Bc5 {[%clk 0:01:11]} 38. Ne5+ {[%clk 0:01:25]}  Ke7 {[%clk 0:01:05]} 39. Kc6 {[%clk 0:01:25]} 1-0


[Site "https://www.chess.com"]

[Event "Titled Tuesday Blitz March 07 Early 2023"]
[White "Migot, Tangi"]
[Black "Matveeva, Olga"]
[WhiteFideId "662445"]
[BlackFideId "24107018"]
[WhiteElo "2551"]
[BlackElo "2056"]
[Result "0-1"]
[Round "03"]
[TimeControl "180+2"]
[Date "2023.03.07"]
[WhiteClock "0:00:11"]
[BlackClock "0:01:17"]

1. d4 {[%clk 0:03:00]}  d5 {[%clk 0:02:59]} 2. c4 {[%clk 0:03:01]}  e6 {[%clk 0:02:59]} 3. Nc3 {[%clk 0:03:01]}  Nf6 {[%clk 0:02:59]} 4. Nf3 {[%clk 0:03:00]}  Be7 {[%clk 0:02:57]} 5. Bg5 {[%clk 0:03:00]}  O-O {[%clk 0:02:55]} 6. Qc2 {[%clk 0:03:01]}  Nbd7 {[%clk 0:02:54]} 7. h4 {[%clk 0:02:56]}  c5 {[%clk 0:02:47]} 8. h5 {[%clk 0:02:52]}  h6 {[%clk 0:02:46]} 9. Bxf6 {[%clk 0:02:38]}  Nxf6 {[%clk 0:02:45]} 10. O-O-O {[%clk 0:02:34]}  dxc4 {[%clk 0:02:29]} 11. e4 {[%clk 0:02:26]}  Qa5 {[%clk 0:02:16]} 12. e5 {[%clk 0:02:00]}  Nd5 {[%clk 0:02:14]} 13. Bxc4 {[%clk 0:02:00]}  Nb4 {[%clk 0:01:51]} 14. Qe2 {[%clk 0:01:51]}  b5 {[%clk 0:01:48]} 15. Nxb5 {[%clk 0:01:34]}  Nxa2+ {[%clk 0:01:40]} 16. Kb1 {[%clk 0:01:33]}  Nb4 {[%clk 0:01:39]} 17. Na3 {[%clk 0:01:06]}  Rb8 {[%clk 0:01:36]} 18. Rh3 {[%clk 0:00:58]}  Nd5 {[%clk 0:01:31]} 19. Bxd5 {[%clk 0:00:46]}  exd5 {[%clk 0:01:30]} 20. Rg3 {[%clk 0:00:31]}  Qxa3 {[%clk 0:01:23]} 21. Qd2 {[%clk 0:00:10]}  Bf5+ {[%clk 0:01:17]} 22. Kc1 {[%clk 0:00:11]}  Qa1# {[%clk 0:01:17]} 0-1


[Site "https://www.chess.com"]

[Event "Titled Tuesday Blitz March 07 Early 2023"]
[White "Kopczynski, Michal"]
[Black "Harriott, Tyrell"]
[WhiteFideId "1124200"]
[BlackFideId "2086484"]
[WhiteElo "2212"]
[BlackElo "2107"]
[Result "1-0"]
[Round "03"]
[TimeControl "180+2"]
[Date "2023.03.07"]
[WhiteClock "0:00:09"]
[BlackClock "0:00:08"]

1. e4 {[%clk 0:03:00]}  e6 {[%clk 0:02:59]} 2. d4 {[%clk 0:03:01]}  d5 {[%clk 0:03:00]} 3. Nc3 {[%clk 0:03:01]}  f5 {[%clk 0:02:59]} 4. exf5 {[%clk 0:03:00]}  exf5 {[%clk 0:02:59]} 5. Bd3 {[%clk 0:03:00]}  Nf6 {[%clk 0:03:00]} 6. Nf3 {[%clk 0:03:01]}  Bd6 {[%clk 0:03:00]} 7. Bg5 {[%clk 0:03:00]}  c6 {[%clk 0:02:59]} 8. Qd2 {[%clk 0:03:00]}  O-O {[%clk 0:02:59]} 9. O-O-O {[%clk 0:03:00]}  Qc7 {[%clk 0:02:55]} 10. Kb1 {[%clk 0:02:59]}  Ne4 {[%clk 0:02:54]} 11. Bxe4 {[%clk 0:02:55]}  fxe4 {[%clk 0:02:54]} 12. Ne1 {[%clk 0:02:55]}  a5 {[%clk 0:02:48]} 13. f3 {[%clk 0:02:51]}  exf3 {[%clk 0:02:41]} 14. Nxf3 {[%clk 0:02:52]}  Bf5 {[%clk 0:02:40]} 15. Rhf1 {[%clk 0:02:42]}  b5 {[%clk 0:02:39]} 16. Rde1 {[%clk 0:02:41]}  a4 {[%clk 0:02:35]} 17. Nd1 {[%clk 0:02:30]}  b4 {[%clk 0:02:30]} 18. Ne3 {[%clk 0:02:30]}  Be4 {[%clk 0:02:22]} 19. Ne5 {[%clk 0:02:21]}  Nd7 {[%clk 0:02:14]} 20. N3c4 {[%clk 0:01:42]}  b3 {[%clk 0:01:57]} 21. Nxd6 {[%clk 0:01:27]}  bxc2+ {[%clk 0:01:37]} 22. Kc1 {[%clk 0:01:26]}  Qxd6 {[%clk 0:01:35]} 23. Nd3 {[%clk 0:01:16]}  c5 {[%clk 0:01:22]} 24. Rxf8+ {[%clk 0:00:53]}  Rxf8 {[%clk 0:01:19]} 25. dxc5 {[%clk 0:00:50]}  Nxc5 {[%clk 0:01:16]} 26. Nb4 {[%clk 0:00:49]}  Qb6 {[%clk 0:01:08]} 27. Nxd5 {[%clk 0:00:43]}  Qb7 {[%clk 0:00:45]} 28. Nb4 {[%clk 0:00:28]}  Qxb4 {[%clk 0:00:20]} 29. Qxb4 {[%clk 0:00:29]}  Nd3+ {[%clk 0:00:21]} 30. Kd2 {[%clk 0:00:30]}  Nxb4 {[%clk 0:00:21]} 31. Rxe4 {[%clk 0:00:30]}  Rf1 {[%clk 0:00:18]} 32. Kc3 {[%clk 0:00:25]}  c1=Q+ {[%clk 0:00:17]} 33. Bxc1 {[%clk 0:00:24]}  Nxa2+ {[%clk 0:00:17]} 34. Kd2 {[%clk 0:00:20]}  Nxc1 {[%clk 0:00:18]} 35. Rxa4 {[%clk 0:00:20]}  h6 {[%clk 0:00:17]} 36. Rc4 {[%clk 0:00:18]}  Nb3+ {[%clk 0:00:16]} 37. Kc3 {[%clk 0:00:15]}  Na5 {[%clk 0:00:16]} 38. Rc8+ {[%clk 0:00:13]}  Kh7 {[%clk 0:00:16]} 39. Rc7 {[%clk 0:00:14]}  Rf2 {[%clk 0:00:15]} 40. b4 {[%clk 0:00:14]}  Rf1 {[%clk 0:00:13]} 41. Kb2 {[%clk 0:00:11]}  Rf2+ {[%clk 0:00:10]} 42. Ka3 {[%clk 0:00:09]}  Rxg2 {[%clk 0:00:08]} 43. bxa5 {[%clk 0:00:10]}  Rxh2 {[%clk 0:00:08]} 44. a6 {[%clk 0:00:09]}  Rh1 {[%clk 0:00:09]} 45. Rc2 {[%clk 0:00:06]}  Rh5 {[%clk 0:00:08]} 46. Ka4 {[%clk 0:00:06]}  Rf5 {[%clk 0:00:07]} 47. Rc8 {[%clk 0:00:05]}  Rf7 {[%clk 0:00:06]} 48. Kb5 {[%clk 0:00:05]}  Ra7 {[%clk 0:00:06]} 49. Kb6 {[%clk 0:00:05]}  Rxa6+ {[%clk 0:00:05]} 50. Kxa6 {[%clk 0:00:06]}  h5 {[%clk 0:00:05]} 51. Kb5 {[%clk 0:00:07]}  Kh6 {[%clk 0:00:05]} 52. Kc4 {[%clk 0:00:07]}  h4 {[%clk 0:00:05]} 53. Kd3 {[%clk 0:00:08]}  Kh5 {[%clk 0:00:06]} 54. Ke2 {[%clk 0:00:08]}  h3 {[%clk 0:00:05]} 55. Kf2 {[%clk 0:00:08]}  Kg4 {[%clk 0:00:06]} 56. Rg8 {[%clk 0:00:07]}  g5 {[%clk 0:00:05]} 57. Kg1 {[%clk 0:00:06]}  Kh4 {[%clk 0:00:05]} 58. Kh2 {[%clk 0:00:04]}  Kg4 {[%clk 0:00:06]} 59. Rh8 {[%clk 0:00:04]}  Kf4 {[%clk 0:00:05]} 60. Rxh3 {[%clk 0:00:04]}  g4 {[%clk 0:00:05]} 61. Rg3 {[%clk 0:00:04]}  Kg5 {[%clk 0:00:04]} 62. Kg2 {[%clk 0:00:05]}  Kf4 {[%clk 0:00:05]} 63. Ra3 {[%clk 0:00:05]}  Kg5 {[%clk 0:00:05]} 64. Kg3 {[%clk 0:00:06]}  Kf5 {[%clk 0:00:05]} 65. Ra4 {[%clk 0:00:07]}  Kg5 {[%clk 0:00:06]} 66. Ra5+ {[%clk 0:00:07]}  Kh6 {[%clk 0:00:06]} 67. Kxg4 {[%clk 0:00:08]}  Kg6 {[%clk 0:00:06]} 68. Ra6+ {[%clk 0:00:08]}  Kg7 {[%clk 0:00:07]} 69. Kf5 {[%clk 0:00:09]}  Kf7 {[%clk 0:00:07]} 70. Ra7+ {[%clk 0:00:09]}  Kg8 {[%clk 0:00:07]} 71. Kf6 {[%clk 0:00:09]}  Kh8 {[%clk 0:00:08]} 72. Kg6 {[%clk 0:00:09]} 1-0


[Site "https://www.chess.com"]

[Event "Titled Tuesday Blitz March 07 Early 2023"]
[White "Szente Varga, Fruzsina"]
[Black "Khumalo, Keith"]
[WhiteFideId "712264"]
[BlackFideId "14319470"]
[WhiteElo "1994"]
[BlackElo "2056"]
[Result "0-1"]
[Round "03"]
[TimeControl "180+2"]
[Date "2023.03.07"]
[WhiteClock "0:00:17"]
[BlackClock "0:01:59"]

1. e4 {[%clk 0:03:00]}  c5 {[%clk 0:02:57]} 2. Nf3 {[%clk 0:02:58]}  d6 {[%clk 0:02:57]} 3. d4 {[%clk 0:02:57]}  cxd4 {[%clk 0:02:58]} 4. Qxd4 {[%clk 0:02:57]}  Nc6 {[%clk 0:02:58]} 5. Bb5 {[%clk 0:02:56]}  Bd7 {[%clk 0:02:58]} 6. Qd3 {[%clk 0:02:55]}  Nf6 {[%clk 0:02:58]} 7. c4 {[%clk 0:02:55]}  g6 {[%clk 0:02:58]} 8. Nc3 {[%clk 0:02:55]}  Bg7 {[%clk 0:02:59]} 9. O-O {[%clk 0:02:54]}  O-O {[%clk 0:02:59]} 10. h3 {[%clk 0:02:54]}  a6 {[%clk 0:02:55]} 11. Bxc6 {[%clk 0:02:52]}  Bxc6 {[%clk 0:02:56]} 12. Be3 {[%clk 0:02:48]}  Qa5 {[%clk 0:02:54]} 13. Rab1 {[%clk 0:02:37]}  Rfc8 {[%clk 0:02:54]} 14. b4 {[%clk 0:02:35]}  Qd8 {[%clk 0:02:54]} 15. b5 {[%clk 0:02:17]}  axb5 {[%clk 0:02:54]} 16. cxb5 {[%clk 0:02:18]}  Bd7 {[%clk 0:02:54]} 17. a4 {[%clk 0:02:13]}  Be6 {[%clk 0:02:53]} 18. Rfc1 {[%clk 0:02:01]}  Qa5 {[%clk 0:02:47]} 19. Nd4 {[%clk 0:01:23]}  Nd7 {[%clk 0:02:37]} 20. Nxe6 {[%clk 0:01:23]}  fxe6 {[%clk 0:02:38]} 21. Bd4 {[%clk 0:01:19]}  Nc5 {[%clk 0:02:31]} 22. Bxc5 {[%clk 0:00:42]}  Rxc5 {[%clk 0:02:32]} 23. Ne2 {[%clk 0:00:29]}  Rxc1+ {[%clk 0:02:24]} 24. Rxc1 {[%clk 0:00:30]}  Qxa4 {[%clk 0:02:25]} 25. Rc7 {[%clk 0:00:30]}  Bf6 {[%clk 0:02:13]} 26. Rxb7 {[%clk 0:00:27]}  Rc8 {[%clk 0:02:13]} 27. g3 {[%clk 0:00:21]}  Rc4 {[%clk 0:02:02]} 28. Rb8+ {[%clk 0:00:21]}  Kg7 {[%clk 0:02:02]} 29. Nf4 {[%clk 0:00:17]}  Rxe4 {[%clk 0:02:02]} 30. b6 {[%clk 0:00:17]}  Qc6 {[%clk 0:01:59]} 31. b7 {[%clk 0:00:17]}  Re1+ {[%clk 0:01:59]} 0-1


[Site "https://www.chess.com"]

[Event "Titled Tuesday Blitz March 07 Early 2023"]
[White "Chor, Kevin"]
[Black "Hrabinska, Myroslava"]
[WhiteFideId "2090740"]
[BlackFideId "14109190"]
[WhiteElo "2540"]
[BlackElo "2039"]
[Result "1-0"]
[Round "03"]
[TimeControl "180+2"]
[Date "2023.03.07"]
[WhiteClock "0:00:59"]
[BlackClock "0:00:50"]

1. Nf3 {[%clk 0:03:00]}  d5 {[%clk 0:02:59]} 2. d4 {[%clk 0:02:59]}  Nf6 {[%clk 0:02:59]} 3. c4 {[%clk 0:02:59]}  e6 {[%clk 0:02:58]} 4. Nc3 {[%clk 0:03:00]}  Be7 {[%clk 0:02:57]} 5. Bg5 {[%clk 0:02:59]}  O-O {[%clk 0:02:54]} 6. cxd5 {[%clk 0:02:59]}  exd5 {[%clk 0:02:53]} 7. e3 {[%clk 0:02:59]}  c6 {[%clk 0:02:52]} 8. Bd3 {[%clk 0:02:59]}  Bg4 {[%clk 0:02:52]} 9. Qc2 {[%clk 0:02:52]}  Bxf3 {[%clk 0:02:30]} 10. gxf3 {[%clk 0:02:53]}  h6 {[%clk 0:02:29]} 11. Bh4 {[%clk 0:02:44]}  c5 {[%clk 0:02:24]} 12. dxc5 {[%clk 0:02:23]}  Bxc5 {[%clk 0:02:23]} 13. Bxf6 {[%clk 0:02:12]}  Qxf6 {[%clk 0:02:22]} 14. Nxd5 {[%clk 0:02:09]}  Qd6 {[%clk 0:02:14]} 15. O-O-O {[%clk 0:02:07]}  Nc6 {[%clk 0:02:04]} 16. Kb1 {[%clk 0:01:54]}  Kh8 {[%clk 0:02:02]} 17. Be4 {[%clk 0:01:45]}  Rad8 {[%clk 0:01:38]} 18. Rhg1 {[%clk 0:01:33]}  Ne7 {[%clk 0:01:20]} 19. Qc3 {[%clk 0:01:22]}  f6 {[%clk 0:01:05]} 20. Nxf6 {[%clk 0:01:03]}  Qxf6 {[%clk 0:01:01]} 21. Qxc5 {[%clk 0:01:03]}  Rc8 {[%clk 0:00:53]} 22. Qd4 {[%clk 0:01:03]}  Nc6 {[%clk 0:00:49]} 23. Qxf6 {[%clk 0:00:59]}  Rxf6 {[%clk 0:00:50]} 24. Rd7 {[%clk 0:00:59]} 1-0


[Site "https://www.chess.com"]